Workbook

Sheet Skema 1
A1: Region Syddanmark, psykiatriske sygehuse.
B2: Skema 1: Udgifter og indtægter på sygehusene/enhederne, eksklusiv omkostningssted 0001, Fælleskonto. (1.000 kr.)
A5: Sygehus | C5: 2023 | D5: 2022 | E5: 2021 | F5: 2020 | G5: Δ2022-2023 | H5: % afvigelse | I5: Begrundelse
A6: Region Syddanmark, Voksen psykiatrien
A7: Region Syddanmark, Voksen psykiatrien | B7: Hovedart 1: Lønninger | C7: 1482530 | D7: 1437698 | E7: 1384422 | F7: 1316147 | G7: =IF(ISERROR(C7- D7)=TRUE,"",C7 - D7) -> 44832 | H7: =IF(ISERROR((((C7- D7)/D7)*100)=TRUE),"",IF((((C7- D7)/D7)*100)<-7,FIXED(((C7- D7)/D7)*100, 1,TRUE) &"%" & "▼",IF((((C7- D7)/D7)*100)>7,FIXED(((C7- D7)/D7)*100, 1,TRUE) &"%" &"▲",FIXED(((C7- D7)/D7)*100, 1,TRUE)&"%"))) -> 3,1%
A8: Region Syddanmark, Voksen psykiatrien | B8: Hovedart 2: Varekøb | C8: 60531 | D8: 54040 | E8: 55896 | F8: 63230 | G8: 6491 | H8: 12,0%▲ | I8: Øget udgiftsniveau i takt med flere ansatte
A9: Region Syddanmark, Voksen psykiatrien | B9: Hovedart 4: Tjenesteydelser m.v. | C9: 395269 | D9: 387205 | E9: 342913 | F9: 330951 | G9: 8064 | H9: 2,1%
A10: Region Syddanmark, Voksen psykiatrien | B10: Hovedart 5: Tilskud og overførsler | C10: 20635 | D10: 2625 | E10: 5885 | F10: 7043 | G10: 18010 | H10: 686,1%▲
A11: Region Syddanmark, Voksen psykiatrien | B11: Hovedart 6: Finansudgifter | F11: 0
A12: Region Syddanmark, Voksen psykiatrien | B12: Hovedart 7: Indtægter | C12: -170161 | D12: -163959 | E12: -145080 | F12: -160791 | G12: -6202 | H12: 3,8%
A13: Region Syddanmark, Voksen psykiatrien | B13: Hovedart 8: Finansindtægter | D13: -12 | G13: 12 | H13: -100,0%▼
A14: Region Syddanmark, Voksen psykiatrien | B14: Hovedart 9: Interne udgifter og indtægter | G14: 0
A15: Region Syddanmark, Voksen psykiatrien | B15: I alt | C15: =SUMIFS((C7:C14),(A7:A14),A15) -> 1788804 | D15: =SUMIFS((D7:D14),(A7:A14),A15) -> 1717597 | E15: =SUMIFS((E7:E14),(A7:A14),A15) -> 1644036 | F15: =SUMIFS((F7:F14),(A7:A14),A15) -> 1556580 | G15: 71207 | H15: 4,1%
A16: Region Syddanmark, Børn-unge psykiatrien | G16: 0
A17: Region Syddanmark, Børn-unge psykiatrien | B17: Hovedart 1: Lønninger | C17: 301393 | D17: 300098 | E17: 285087 | F17: 270751 | G17: 1295 | H17: 0,4%
A18: Region Syddanmark, Børn-unge psykiatrien | B18: Hovedart 2: Varekøb | C18: 9774 | D18: 8681 | E18: 9560 | F18: 11512 | G18: 1093 | H18: 12,6%▲ | I18: Øget udgiftsniveau i takt med flere ansatte
A19: Region Syddanmark, Børn-unge psykiatrien | B19: Hovedart 4: Tjenesteydelser m.v. | C19: 71126 | D19: 71482 | E19: 92415 | F19: 64432 | G19: -356 | H19: -0,5%
A20: Region Syddanmark, Børn-unge psykiatrien | B20: Hovedart 5: Tilskud og overførsler | C20: 4042 | D20: 526 | E20: 1172 | F20: 1407 | G20: 3516 | H20: 668,4%▲
A21: Region Syddanmark, Børn-unge psykiatrien | B21: Hovedart 6: Finansudgifter
A22: Region Syddanmark, Børn-unge psykiatrien | B22: Hovedart 7: Indtægter | C22: -38981 | D22: -26205 | E22: -54417 | F22: -34921 | G22: -12776 | H22: 48,8%▲
A23: Region Syddanmark, Børn-unge psykiatrien | B23: Hovedart 8: Finansindtægter | E23: -3
A24: Region Syddanmark, Børn-unge psykiatrien | B24: Hovedart 9: Interne udgifter og indtægter | G24: 0
A25: Region Syddanmark, Børn-unge psykiatrien | B25: I alt | C25: =SUMIFS((C7:C24),(A7:A24),A25) -> 347354 | D25: =SUMIFS((D7:D24),(A7:A24),A25) -> 354582 | E25: =SUMIFS((E7:E24),(A7:A24),A25) -> 333814 | F25: =SUMIFS((F7:F24),(A7:A24),A25) -> 313181 | G25: -7228 | H25: -2,0%
A26: Ikke fordelte udgifter i Region Syddanmark, psykiatri | G26: 0
A27: Ikke fordelte udgifter i Region Syddanmark, psykiatri | B27: Hovedart 1: Lønninger | C27: 9301 | D27: 7890 | E27: 7877 | F27: 6573 | G27: 1411 | H27: 17,9%▲ | I27: Nye indsatser
A28: Ikke fordelte udgifter i Region Syddanmark, psykiatri | B28: Hovedart 2: Varekøb | C28: 393 | D28: 237 | E28: 262 | F28: 183 | G28: 156 | H28: 65,8%▲ | I28: Nye indsatser
A29: Ikke fordelte udgifter i Region Syddanmark, psykiatri | B29: Hovedart 4: Tjenesteydelser m.v. | C29: 1388 | D29: 1128 | E29: 1386 | F29: 1270 | G29: 260 | H29: 23,0%▲ | I29: Nye indsatser
A30: Ikke fordelte udgifter i Region Syddanmark, psykiatri | B30: Hovedart 5: Tilskud og overførsler | G30: 0
A31: Ikke fordelte udgifter i Region Syddanmark, psykiatri | B31: Hovedart 6: Finansudgifter
A32: Ikke fordelte udgifter i Region Syddanmark, psykiatri | B32: Hovedart 7: Indtægter | C32: -78 | D32: -12 | E32: -50 | F32: -32 | G32: -66 | H32: 550,0%▲ | I32: Nye indsatser
A33: Ikke fordelte udgifter i Region Syddanmark, psykiatri | B33: Hovedart 8: Finansindtægter
A34: Ikke fordelte udgifter i Region Syddanmark, psykiatri | B34: Hovedart 9: Interne udgifter og indtægter | G34: 0
A35: Ikke fordelte udgifter i Region Syddanmark, psykiatri | B35: I alt | C35: =SUMIFS((C7:C34),(A7:A34),A35) -> 11004 | D35: =SUMIFS((D7:D34),(A7:A34),A35) -> 9243 | E35: =SUMIFS((E7:E34),(A7:A34),A35) -> 9475 | F35: =SUMIFS((F7:F34),(A7:A34),A35) -> 7994 | G35: 1761 | H35: 19,1%▲

Sheet Skema 2
A1: Region Syddanmark, psykiatriske sygehuse.
B2: Skema 2: Fællesudgifter og -indtægter vedrørende sygehusene. (1.000 kr.)
A5: Sygehus | C5: 2023 | D5: 2022 | E5: 2021 | F5: 2020 | G5: Δ2022-2023 | H5: % afvigelse | I5: Begrundelse
A6: Region Syddanmark, Voksen psykiatrien
A7: Region Syddanmark, Voksen psykiatrien | B7: Hovedart 1: Lønninger | C7: 7511 | D7: 15704 | E7: 12932 | F7: 16590 | G7: =IF(ISERROR(C7- D7)=TRUE,"",C7 - D7) -> -8193 | H7: =IF(ISERROR((((C7- D7)/D7)*100)=TRUE),"",IF((((C7- D7)/D7)*100)<-7,FIXED(((C7- D7)/D7)*100, 1,TRUE) &"%" & "▼",IF((((C7- D7)/D7)*100)>7,FIXED(((C7- D7)/D7)*100, 1,TRUE) &"%" &"▲",FIXED(((C7- D7)/D7)*100, 1,TRUE)&"%"))) -> -52,2%▼
A8: Region Syddanmark, Voksen psykiatrien | B8: Hovedart 2: Varekøb | C8: 2908 | D8: -682 | E8: 2450 | F8: 4552 | G8: 3590 | H8: -526,4%▼
A9: Region Syddanmark, Voksen psykiatrien | B9: Hovedart 4: Tjenesteydelser m.v. | C9: 46991 | D9: 37814 | E9: 40907 | F9: 33266 | G9: 9177 | H9: 24,3%▲
A10: Region Syddanmark, Voksen psykiatrien | B10: Hovedart 5: Tilskud og overførsler | G10: 0
A11: Region Syddanmark, Voksen psykiatrien | B11: Hovedart 6: Finansudgifter
A12: Region Syddanmark, Voksen psykiatrien | B12: Hovedart 7: Indtægter | C12: -16181 | D12: -9876 | E12: -4117 | F12: -6693 | G12: -6305 | H12: 63,8%▲
A13: Region Syddanmark, Voksen psykiatrien | B13: Hovedart 8: Finansindtægter | C13: -52 | D13: -65 | G13: 13 | H13: -20,0%▼
A14: Region Syddanmark, Voksen psykiatrien | B14: Hovedart 9: Interne udgifter og indtægter | G14: 0
A15: Region Syddanmark, Voksen psykiatrien | B15: I alt | C15: =SUMIFS((C7:C14),(A7:A14),A15) -> 41177 | D15: =SUMIFS((D7:D14),(A7:A14),A15) -> 42895 | E15: =SUMIFS((E7:E14),(A7:A14),A15) -> 52172 | F15: =SUMIFS((F7:F14),(A7:A14),A15) -> 47715 | G15: -1718 | H15: -4,0%
A16: Region Syddanmark, Børn-unge psykiatrien | G16: 0
A17: Region Syddanmark, Børn-unge psykiatrien | B17: Hovedart 1: Lønninger | C17: 1471 | D17: 3148 | E17: 2575 | F17: 3315 | G17: -1677 | H17: -53,3%▼
A18: Region Syddanmark, Børn-unge psykiatrien | B18: Hovedart 2: Varekøb | C18: 570 | D18: -137 | E18: 488 | F18: 909 | G18: 707 | H18: -516,1%▼
A19: Region Syddanmark, Børn-unge psykiatrien | B19: Hovedart 4: Tjenesteydelser m.v. | C19: 9205 | D19: 7582 | E19: 8144 | F19: 6647 | G19: 1623 | H19: 21,4%▲
A20: Region Syddanmark, Børn-unge psykiatrien | B20: Hovedart 5: Tilskud og overførsler | G20: 0
A21: Region Syddanmark, Børn-unge psykiatrien | B21: Hovedart 6: Finansudgifter
A22: Region Syddanmark, Børn-unge psykiatrien | B22: Hovedart 7: Indtægter | C22: -3170 | D22: -1980 | E22: -820 | F22: -1337 | G22: -1190 | H22: 60,1%▲
A23: Region Syddanmark, Børn-unge psykiatrien | B23: Hovedart 8: Finansindtægter | C23: -10 | D23: -13 | G23: 3 | H23: -23,1%▼
A24: Region Syddanmark, Børn-unge psykiatrien | B24: Hovedart 9: Interne udgifter og indtægter | G24: 0
A25: Region Syddanmark, Børn-unge psykiatrien | B25: I alt | C25: =SUMIFS((C7:C24),(A7:A24),A25) -> 8066 | D25: =SUMIFS((D7:D24),(A7:A24),A25) -> 8600 | E25: =SUMIFS((E7:E24),(A7:A24),A25) -> 10387 | F25: =SUMIFS((F7:F24),(A7:A24),A25) -> 9534 | G25: -534 | H25: -6,2%
A26: Ikke fordelte udgifter i Region Syddanmark, psykiatri | G26: 0
A27: Ikke fordelte udgifter i Region Syddanmark, psykiatri | B27: Hovedart 1: Lønninger | G27: 0
A28: Ikke fordelte udgifter i Region Syddanmark, psykiatri | B28: Hovedart 2: Varekøb | G28: 0
A29: Ikke fordelte udgifter i Region Syddanmark, psykiatri | B29: Hovedart 4: Tjenesteydelser m.v. | C29: 14628 | D29: 14262 | E29: 14085 | F29: 13889 | G29: 366 | H29: 2,6%
A30: Ikke fordelte udgifter i Region Syddanmark, psykiatri | B30: Hovedart 5: Tilskud og overførsler | G30: 0
A31: Ikke fordelte udgifter i Region Syddanmark, psykiatri | B31: Hovedart 6: Finansudgifter | G31: 0
A32: Ikke fordelte udgifter i Region Syddanmark, psykiatri | B32: Hovedart 7: Indtægter | G32: 0
A33: Ikke fordelte udgifter i Region Syddanmark, psykiatri | B33: Hovedart 8: Finansindtægter | G33: 0
A34: Ikke fordelte udgifter i Region Syddanmark, psykiatri | B34: Hovedart 9: Interne udgifter og indtægter | G34: 0
A35: Ikke fordelte udgifter i Region Syddanmark, psykiatri | B35: I alt | C35: =SUMIFS((C7:C34),(A7:A34),A35) -> 14628 | D35: =SUMIFS((D7:D34),(A7:A34),A35) -> 14262 | E35: =SUMIFS((E7:E34),(A7:A34),A35) -> 14085 | F35: =SUMIFS((F7:F34),(A7:A34),A35) -> 13889 | G35: 366 | H35: 2,6%

Sheet Skema 3
A1: Region Syddanmark, psykiatriske sygehuse.
B2: Skema 3:Regionale fællesudgifter og -indtægter. (1.000 kr.)
A5: Sygehus | C5: 2023 | D5: 2022 | E5: 2021 | F5: 2020 | G5: Δ2022-2023 | H5: % afvigelse | I5: Begrundelse
A6: Region Syddanmark, Voksen psykiatrien
A7: Region Syddanmark, Voksen psykiatrien | B7: 1.70.50: Andel af fællesudgifter | C7: 33860 | D7: 32054 | E7: 28685 | F7: 26605 | G7: =IF(ISERROR(C7- D7)=TRUE,"",C7 - D7) -> 1806 | H7: =IF(ISERROR((((C7- D7)/D7)*100)=TRUE),"",IF((((C7- D7)/D7)*100)<-7,FIXED(((C7- D7)/D7)*100, 1,TRUE) &"%" & "▼",IF((((C7- D7)/D7)*100)>7,FIXED(((C7- D7)/D7)*100, 1,TRUE) &"%" &"▲",FIXED(((C7- D7)/D7)*100, 1,TRUE)&"%"))) -> 5,6%
A8: Region Syddanmark, Voksen psykiatrien | B8: 1.60.40: Andel af central administration af sundhed (til og med 2019) | C8: 8432 | D8: 8316 | E8: 8143 | F8: 7163 | G8: 116 | H8: 1,4%
A9: Region Syddanmark, Voksen psykiatrien | B9: 1.60.41: Andel af øvrige udgifter og indtægter | G9: 0
A10: Region Syddanmark, Voksen psykiatrien | B10: 1.50.33: Andel af central administration af sundhed (ekskl. psykiatri) | G10: 0
A11: Region Syddanmark, Voksen psykiatrien | B11: 1.50.35: Administration af det psykiatriske område (kun central del) | G11: 0
A12: Region Syddanmark, Voksen psykiatrien | B12: I alt | C12: =SUMIFS((C7:C11),(A7:A11),A12) -> 42292 | D12: =SUMIFS((D7:D11),(A7:A11),A12) -> 40370 | E12: =SUMIFS((E7:E11),(A7:A11),A12) -> 36828 | F12: =SUMIFS((F7:F11),(A7:A11),A12) -> 33768 | G12: 1922 | H12: 4,8%
A13: Region Syddanmark, Børn-unge psykiatrien | G13: 0
A14: Region Syddanmark, Børn-unge psykiatrien | B14: 1.70.50: Andel af fællesudgifter | C14: 6633 | D14: 6427 | E14: 5711 | F14: 5316 | G14: 206 | H14: 3,2%
A15: Region Syddanmark, Børn-unge psykiatrien | B15: 1.60.40: Andel af central administration af sundhed (til og med 2019) | C15: 1662 | D15: 1667 | E15: 1621 | F15: 1431 | G15: -5 | H15: -0,3%
A16: Region Syddanmark, Børn-unge psykiatrien | B16: 1.60.41: Andel af øvrige udgifter og indtægter | G16: 0
A17: Region Syddanmark, Børn-unge psykiatrien | B17: 1.50.33: Andel af central administration af sundhed (ekskl. psykiatri) | G17: 0
A18: Region Syddanmark, Børn-unge psykiatrien | B18: 1.50.35: Administration af det psykiatriske område (kun central del) | G18: 0
A19: Region Syddanmark, Børn-unge psykiatrien | B19: I alt | C19: =SUMIFS((C7:C18),(A7:A18),A19) -> 8295 | D19: =SUMIFS((D7:D18),(A7:A18),A19) -> 8094 | E19: =SUMIFS((E7:E18),(A7:A18),A19) -> 7332 | F19: =SUMIFS((F7:F18),(A7:A18),A19) -> 6747 | G19: 201 | H19: 2,5%
A20: Ikke fordelte udgifter i Region Syddanmark, psykiatri | G20: 0
A21: Ikke fordelte udgifter i Region Syddanmark, psykiatri | B21: 1.70.50: Andel af fællesudgifter | G21: 0
A22: Ikke fordelte udgifter i Region Syddanmark, psykiatri | B22: 1.60.40: Andel af central administration af sundhed (til og med 2019) | G22: 0
A23: Ikke fordelte udgifter i Region Syddanmark, psykiatri | B23: 1.60.41: Andel af øvrige udgifter og indtægter | G23: 0
A24: Ikke fordelte udgifter i Region Syddanmark, psykiatri | B24: 1.50.33: Andel af central administration af sundhed (ekskl. psykiatri) | G24: 0
A25: Ikke fordelte udgifter i Region Syddanmark, psykiatri | B25: 1.50.35: Administration af det psykiatriske område (kun central del) | G25: 0
A26: Ikke fordelte udgifter i Region Syddanmark, psykiatri | B26: I alt | C26: =SUMIFS((C7:C25),(A7:A25),A26) -> 0 | D26: =SUMIFS((D7:D25),(A7:A25),A26) -> 0 | E26: =SUMIFS((E7:E25),(A7:A25),A26) -> 0 | F26: =SUMIFS((F7:F25),(A7:A25),A26) -> 0 | G26: 0

Sheet Skema 4
A1: Region Syddanmark, psykiatriske sygehuse.
B2: Skema 4: Udgifter og indtægter til og fra psykiatriske afdelinger konteret på somatiske sygehuse. (1.000 kr.)
A5: Sygehus | C5: 2023 | D5: 2022 | E5: 2021 | F5: 2020 | G5: Δ2022-2023 | H5: % afvigelse | I5: Begrundelse
A6: Region Syddanmark, Voksen psykiatrien
A7: Region Syddanmark, Voksen psykiatrien | B7: Korrektion | G7: =IF(ISERROR(C7- D7)=TRUE,"",C7 - D7) -> 0 | H7: =IF(ISERROR((((C7- D7)/D7)*100)=TRUE),"",IF((((C7- D7)/D7)*100)<-7,FIXED(((C7- D7)/D7)*100, 1,TRUE) &"%" & "▼",IF((((C7- D7)/D7)*100)>7,FIXED(((C7- D7)/D7)*100, 1,TRUE) &"%" &"▲",FIXED(((C7- D7)/D7)*100, 1,TRUE)&"%"))) -> 
A8: Region Syddanmark, Voksen psykiatrien | B8: Lønudg. på psyk. afd.,somatiske sygehuse | G8: 0
A9: Region Syddanmark, Voksen psykiatrien | B9: Øvrige udg. til psyk. afd.,somatiske sygehuse | G9: 0
A10: Region Syddanmark, Voksen psykiatrien | B10: I alt | C10: =SUMIFS((C7:C9),(A7:A9),A10) -> 0 | D10: =SUMIFS((D7:D9),(A7:A9),A10) -> 0 | E10: =SUMIFS((E7:E9),(A7:A9),A10) -> 0 | F10: =SUMIFS((F7:F9),(A7:A9),A10) -> 0 | G10: 0
A11: Region Syddanmark, Børn-unge psykiatrien | G11: 0
A12: Region Syddanmark, Børn-unge psykiatrien | B12: Korrektion | G12: 0
A13: Region Syddanmark, Børn-unge psykiatrien | B13: Lønudg. på psyk. afd.,somatiske sygehuse | G13: 0
A14: Region Syddanmark, Børn-unge psykiatrien | B14: Øvrige udg. til psyk. afd.,somatiske sygehuse | G14: 0
A15: Region Syddanmark, Børn-unge psykiatrien | B15: I alt | C15: =SUMIFS((C7:C14),(A7:A14),A15) -> 0 | D15: =SUMIFS((D7:D14),(A7:A14),A15) -> 0 | E15: =SUMIFS((E7:E14),(A7:A14),A15) -> 0 | F15: =SUMIFS((F7:F14),(A7:A14),A15) -> 0 | G15: 0
A16: Ikke fordelte udgifter i Region Syddanmark, psykiatri | G16: 0
A17: Ikke fordelte udgifter i Region Syddanmark, psykiatri | B17: Korrektion | G17: 0
A18: Ikke fordelte udgifter i Region Syddanmark, psykiatri | B18: Lønudg. på psyk. afd.,somatiske sygehuse | G18: 0
A19: Ikke fordelte udgifter i Region Syddanmark, psykiatri | B19: Øvrige udg. til psyk. afd.,somatiske sygehuse | G19: 0
A20: Ikke fordelte udgifter i Region Syddanmark, psykiatri | B20: I alt | C20: =SUMIFS((C7:C19),(A7:A19),A20) -> 0 | D20: =SUMIFS((D7:D19),(A7:A19),A20) -> 0 | E20: =SUMIFS((E7:E19),(A7:A19),A20) -> 0 | F20: =SUMIFS((F7:F19),(A7:A19),A20) -> 0 | G20: 0

Sheet Skema 5
A1: Region Syddanmark, psykiatriske sygehuse.
B2: Skema 5: Leasing- og huslejeudgifter. (1.000 kr.)
A5: Sygehus | C5: 2023 | D5: 2022 | E5: 2021 | F5: 2020 | G5: Δ2022-2023 | H5: % afvigelse | I5: Begrundelse
A6: Region Syddanmark, Voksen psykiatrien
A7: Region Syddanmark, Voksen psykiatrien | B7: Andre udgifter | G7: =IF(ISERROR(C7- D7)=TRUE,"",C7 - D7) -> 0 | H7: =IF(ISERROR((((C7- D7)/D7)*100)=TRUE),"",IF((((C7- D7)/D7)*100)<-7,FIXED(((C7- D7)/D7)*100, 1,TRUE) &"%" & "▼",IF((((C7- D7)/D7)*100)>7,FIXED(((C7- D7)/D7)*100, 1,TRUE) &"%" &"▲",FIXED(((C7- D7)/D7)*100, 1,TRUE)&"%"))) -> 
A8: Region Syddanmark, Voksen psykiatrien | B8: Leasing- og lejeudgifter | D8: 0 | E8: 53 | F8: 56 | G8: 0 | I8: Ophør af aftaler
A9: Region Syddanmark, Voksen psykiatrien | B9: Huslejeudgifter | C9: 34942 | D9: 29846 | E9: 34368 | F9: 34194 | G9: 5096 | H9: 17,1%▲ | I9: Lokaleændringer
A10: Region Syddanmark, Voksen psykiatrien | B10: I alt | C10: =SUMIFS((C7:C9),(A7:A9),A10) -> 34942 | D10: =SUMIFS((D7:D9),(A7:A9),A10) -> 29846 | E10: =SUMIFS((E7:E9),(A7:A9),A10) -> 34421 | F10: =SUMIFS((F7:F9),(A7:A9),A10) -> 34250 | G10: 5096 | H10: 17,1%▲
A11: Region Syddanmark Børn-unge psykiatrien | G11: 0
A12: Region Syddanmark Børn-unge psykiatrien | B12: Andre udgifter | G12: 0
A13: Region Syddanmark Børn-unge psykiatrien | B13: Leasing- og lejeudgifter | C13: 112 | D13: 125 | E13: 109 | F13: 100 | G13: -13 | H13: -10,4%▼ | I13: Ophør af aftaler
A14: Region Syddanmark Børn-unge psykiatrien | B14: Huslejeudgifter | C14: 6852 | D14: 6020 | E14: 6832 | F14: 6832 | G14: 832 | H14: 13,8%▲ | I14: Lokaleændringer
A15: Region Syddanmark Børn-unge psykiatrien | B15: I alt | C15: =SUMIFS((C7:C14),(A7:A14),A15) -> 6964 | D15: =SUMIFS((D7:D14),(A7:A14),A15) -> 6145 | E15: =SUMIFS((E7:E14),(A7:A14),A15) -> 6941 | F15: =SUMIFS((F7:F14),(A7:A14),A15) -> 6932 | G15: 819 | H15: 13,3%▲
A16: Ikke fordelte udgifter i Region Syddanmark, psykiatri | G16: 0
A17: Ikke fordelte udgifter i Region Syddanmark, psykiatri | B17: Andre udgifter | G17: 0
A18: Ikke fordelte udgifter i Region Syddanmark, psykiatri | B18: Leasing- og lejeudgifter | G18: 0
A19: Ikke fordelte udgifter i Region Syddanmark, psykiatri | B19: Huslejeudgifter | G19: 0
A20: Ikke fordelte udgifter i Region Syddanmark, psykiatri | B20: I alt | C20: =SUMIFS((C7:C19),(A7:A19),A20) -> 0 | D20: =SUMIFS((D7:D19),(A7:A19),A20) -> 0 | E20: =SUMIFS((E7:E19),(A7:A19),A20) -> 0 | F20: =SUMIFS((F7:F19),(A7:A19),A20) -> 0 | G20: 0

Sheet Skema 6
A1: Region Syddanmark, psykiatriske sygehuse.
B2: Skema 6: Udgifter til andet end patientbehandling. (1.000 kr.)
A5: Sygehus | C5: 2023 | D5: 2022 | E5: 2021 | F5: 2020 | G5: Δ2022-2023 | H5: % afvigelse | I5: Begrundelse
A6: Region Syddanmark, Voksen psykiatrien
A7: Region Syddanmark, Voksen psykiatrien | B7: Skema 6.1: Center for voldsramte (Bispebjerg) | G7: =IF(ISERROR(C7- D7)=TRUE,"",C7 - D7) -> 0 | H7: =IF(ISERROR((((C7- D7)/D7)*100)=TRUE),"",IF((((C7- D7)/D7)*100)<-7,FIXED(((C7- D7)/D7)*100, 1,TRUE) &"%" & "▼",IF((((C7- D7)/D7)*100)>7,FIXED(((C7- D7)/D7)*100, 1,TRUE) &"%" &"▲",FIXED(((C7- D7)/D7)*100, 1,TRUE)&"%"))) -> 
A8: Region Syddanmark, Voksen psykiatrien | B8: Skema 6.2: Ventilatørbistand i hjemmet, respiratorpatienter | G8: 0
A9: Region Syddanmark, Voksen psykiatrien | B9: Skema 6.3: Blodprøvetagning i eget hjem | G9: 0
A10: Region Syddanmark, Voksen psykiatrien | B10: Skema 6.4: Psykinfo + pårørende | G10: 0
A11: Region Syddanmark, Voksen psykiatrien | B11: Skema 6.5: Leveret udstyr til patienter i eget hjem, ilt og sonderemedier | G11: 0
A12: Region Syddanmark, Voksen psykiatrien | B12: Skema 6.6: Montebello (Nordsjællands Hospitaler) | G12: 0
A13: Region Syddanmark, Voksen psykiatrien | B13: Skema 6.7: Satspulje korrektioner mellem år | G13: 0
A14: Region Syddanmark, Voksen psykiatrien | B14: Skema 6.8: Klinisk farmakologisk rådgivning af praksissektoren | G14: 0
A15: Region Syddanmark, Voksen psykiatrien | B15: Skema 6.9: Tandregulering ifm. operation | G15: 0
A16: Region Syddanmark, Voksen psykiatrien | B16: Skema 6.10: Giftlinjen | G16: 0
A17: Region Syddanmark, Voksen psykiatrien | B17: Skema 6.11: Tjenestemandspensioner | G17: 0
A18: Region Syddanmark, Voksen psykiatrien | B18: Skema 6.12: Art 4.6 Betalinger til staten | G18: 0
A19: Region Syddanmark, Voksen psykiatrien | B19: Skema 6.13: Art 4.7 Betalinger til kommuner | G19: 0
A20: Region Syddanmark, Voksen psykiatrien | B20: Skema 6.14: Art 4.8 Betalinger til andre regioner | C20: 4456 | D20: 34362 | E20: 37260 | F20: 33002 | G20: -29906 | H20: -87,0%▼ | I20: Sikringen flyttet til 6.46
A21: Region Syddanmark, Voksen psykiatrien | B21: Skema 6.15: Art 7.6 Betalinger fra staten
A22: Region Syddanmark, Voksen psykiatrien | B22: Skema 6.16: Art 7.7 Betalinger fra kommuner | C22: -28831 | D22: -5255 | E22: -3730 | F22: -6749 | G22: -23576 | H22: 448,6%▲ | I22: Inkl Særlige Pladser
A23: Region Syddanmark, Voksen psykiatrien | B23: Skema 6.17: Art 7.8 Betalinger fra andre regioner | C23: -13616 | D23: -15204 | E23: -10052 | F23: -10340 | G23: 1588 | H23: -10,4%▼
A24: Region Syddanmark, Voksen psykiatrien | B24: Skema 6.18: Betalinger til selvejende, private og udenlandske sygehuse | G24: 0
A25: Region Syddanmark, Voksen psykiatrien | B25: Skema 6.19: Dækningsafgift/ejendomsskat | C25: 2518 | D25: 2501 | E25: 2468 | F25: 2422 | G25: 17 | H25: 0,7%
A26: Region Syddanmark, Voksen psykiatrien | B26: Skema 6.20: Forsikringer/erstatninger | C26: 7368 | D26: 7018 | E26: 6995 | F26: 8245 | G26: 350 | H26: 5,0%
A27: Region Syddanmark, Voksen psykiatrien | B27: Skema 6.21: Vederlagsfri Lab. –ydelser og andre ydelser til praksissektoren
A28: Region Syddanmark, Voksen psykiatrien | B28: Skema 6.22: Patienttransport | C28: 2160 | D28: 2036 | E28: 2067 | F28: 1424 | G28: 124 | H28: 6,1%
A29: Region Syddanmark, Voksen psykiatrien | B29: Skema 6.23: Serviceydelser til/fra andre institutioner eller sygehuse udenfor regionen
A30: Region Syddanmark, Voksen psykiatrien | B30: Skema 6.24: Udgifter til eksternt finansierede forskning | C30: 5888 | E30: -8 | F30: -55 | G30: 5888
A31: Region Syddanmark, Voksen psykiatrien | B31: Skema 6.25: Forebyggelse rettet mod praksissektoren og kommuner
A32: Region Syddanmark, Voksen psykiatrien | B32: Skema 6.26: Praksisreservelæger | G32: 0
A33: Region Syddanmark, Voksen psykiatrien | B33: Skema 6.27: Præhospital
A34: Region Syddanmark, Voksen psykiatrien | B34: Skema 6.28: Udgifter til Danske Regioner (Kontigent, MedCom, Fællesproj.) | G34: 0
A35: Region Syddanmark, Voksen psykiatrien | B35: Skema 6.29: Hospice
A36: Region Syddanmark, Voksen psykiatrien | B36: Skema 6.30: Konsulenter(Praksis) | C36: 745 | D36: 565 | E36: 418 | F36: 424 | G36: 180 | H36: 31,9%▲ | I36: Flere ansatte end i 2022
A37: Region Syddanmark, Voksen psykiatrien | B37: Skema 6.31: Videnskabsetisk Komité
A38: Region Syddanmark, Voksen psykiatrien | B38: Skema 6.32: Tolkebistand | C38: 121 | D38: 167 | E38: 151 | F38: 455 | G38: -46 | H38: -27,5%▼ | I38: Faldende brug af enkelstående tolke-ydelser
A39: Region Syddanmark, Voksen psykiatrien | B39: Skema 6.33: Dansk Center for Partikelterapi | G39: =IF(ISERROR(C39- D39)=TRUE,"",C39 - D39) ->  | H39: =IF(ISERROR((((C39- D39)/D39)*100)=TRUE),"",IF((((C39- D39)/D39)*100)<-7,FIXED(((C39- D39)/D39)*100, 1,TRUE) &"%" & "▼",IF((((C39- D39)/D39)*100)>7,FIXED(((C39- D39)/D39)*100, 1,TRUE) &"%" &"▲",FIXED(((C39- D39)/D39)*100, 1,TRUE)&"%"))) -> 
A40: Region Syddanmark, Voksen psykiatrien | B40: Skema 6.34: Politisk organisation – overførte udgifter fra funktion 4.10.01, 4.10.02 og 4.10.04 | G40: 0
A41: Region Syddanmark, Voksen psykiatrien | B41: Skema 6.35: Øvrige udgifter, Region Sjælland
A42: Region Syddanmark, Voksen psykiatrien | B42: Skema 6.36: Sundhedsydelser ifm. specialsektor | G42: 0
A43: Region Syddanmark, Voksen psykiatrien | B43: Skema 6.37: Udgifter til primær sundhed fra skema 2
A44: Region Syddanmark, Voksen psykiatrien | B44: Skema 6.38: Udgifter til primær sundhed fra skema 3 | G44: 0
A45: Region Syddanmark, Voksen psykiatrien | B45: Skema 6.39: Særlige udgifter ifm. COVID-19
A46: Region Syddanmark, Voksen psykiatrien | B46: Skema 6.40: Udleveret udstyr/tilbehør ifm. cochlear implantater | G46: 0
A47: Region Syddanmark, Voksen psykiatrien | B47: Skema 6.41: Luxturna-behandling, Rigshospitalet
A48: Region Syddanmark, Voksen psykiatrien | B48: Skema 6.42: Udleveret medicin | C48: 7702 | D48: 8302 | E48: 7670 | G48: -600 | H48: -7,2%▼ | I48: Faldende udlevering + priser
A49: Region Syddanmark, Voksen psykiatrien | B49: Skema 6.43: Udgifter ifm. sundhedsklynger | G49: 0
A50: Region Syddanmark, Voksen psykiatrien | B50: Skema 6.44: Ukrainske patienter under særlov eller asyl | G50: 0
A51: Region Syddanmark, Voksen psykiatrien | B51: Skema 6.45: Udgifter ifm. de særlige pladser i psykiatrien | C51: 42489 | G51: 42489
A52: Region Syddanmark, Voksen psykiatrien | B52: Skema 6.46: Sikringsafdelingen, Region Sjælland | C52: 18781 | G52: 18781
A53: Region Syddanmark, Voksen psykiatrien | B53: Skema 6.47: Øvrige (Kan kun benyttes efter aftale med Sundhedsdatastyrelsen) | G53: 0
A54: Region Syddanmark, Voksen psykiatrien | B54: Lukkede poster (må kun bruges af Sundhedsdatastyrelsen) | G54: 0
A55: Region Syddanmark, Voksen psykiatrien | B55: I alt | C55: =SUMIFS((C7:C54),(A7:A54),A55) -> 49781 | D55: =SUMIFS((D7:D54),(A7:A54),A55) -> 34492 | E55: =SUMIFS((E7:E54),(A7:A54),A55) -> 43239 | F55: =SUMIFS((F7:F54),(A7:A54),A55) -> 28828 | G55: 15289 | H55: 44,3%▲
A56: Region Syddanmark, Børn-unge psykiatrien | G56: 0
A57: Region Syddanmark, Børn-unge psykiatrien | B57: Skema 6.1: Center for voldsramte (Bispebjerg) | G57: 0
A58: Region Syddanmark, Børn-unge psykiatrien | B58: Skema 6.2: Ventilatørbistand i hjemmet, respiratorpatienter | G58: 0
A59: Region Syddanmark, Børn-unge psykiatrien | B59: Skema 6.3: Blodprøvetagning i eget hjem | G59: 0
A60: Region Syddanmark, Børn-unge psykiatrien | B60: Skema 6.4: Psykinfo + pårørende | G60: 0
A61: Region Syddanmark, Børn-unge psykiatrien | B61: Skema 6.5: Leveret udstyr til patienter i eget hjem, ilt og sonderemedier | G61: 0
A62: Region Syddanmark, Børn-unge psykiatrien | B62: Skema 6.6: Montebello (Nordsjællands Hospitaler) | G62: 0
A63: Region Syddanmark, Børn-unge psykiatrien | B63: Skema 6.7: Satspulje korrektioner mellem år | G63: 0
A64: Region Syddanmark, Børn-unge psykiatrien | B64: Skema 6.8: Klinisk farmakologisk rådgivning af praksissektoren | G64: 0
A65: Region Syddanmark, Børn-unge psykiatrien | B65: Skema 6.9: Tandregulering ifm. operation | G65: 0
A66: Region Syddanmark, Børn-unge psykiatrien | B66: Skema 6.10: Giftlinjen | G66: 0
A67: Region Syddanmark, Børn-unge psykiatrien | B67: Skema 6.11: Tjenestemandspensioner | G67: 0
A68: Region Syddanmark, Børn-unge psykiatrien | B68: Skema 6.12: Art 4.6 Betalinger til staten | G68: 0
A69: Region Syddanmark, Børn-unge psykiatrien | B69: Skema 6.13: Art 4.7 Betalinger til kommuner | G69: 0
A70: Region Syddanmark, Børn-unge psykiatrien | B70: Skema 6.14: Art 4.8 Betalinger til andre regioner | C70: 873 | D70: 2737 | E70: 3289 | F70: 2082 | G70: -1864 | H70: -68,1%▼
A71: Region Syddanmark, Børn-unge psykiatrien | B71: Skema 6.15: Art 7.6 Betalinger fra staten | G71: =IF(ISERROR(C71- D71)=TRUE,"",C71 - D71) ->  | H71: =IF(ISERROR((((C71- D71)/D71)*100)=TRUE),"",IF((((C71- D71)/D71)*100)<-7,FIXED(((C71- D71)/D71)*100, 1,TRUE) &"%" & "▼",IF((((C71- D71)/D71)*100)>7,FIXED(((C71- D71)/D71)*100, 1,TRUE) &"%" &"▲",FIXED(((C71- D71)/D71)*100, 1,TRUE)&"%"))) -> 
A72: Region Syddanmark, Børn-unge psykiatrien | B72: Skema 6.16: Art 7.7 Betalinger fra kommuner | C72: -5648 | D72: -1054 | E72: -743 | F72: -1349 | G72: -4594 | H72: 435,9%▲ | I72: Inkl Særlige Pladser
A73: Region Syddanmark, Børn-unge psykiatrien | B73: Skema 6.17: Art 7.8 Betalinger fra andre regioner | C73: -2667 | D73: -3048 | E73: -2001 | F73: -2066 | G73: 381 | H73: -12,5%▼
A74: Region Syddanmark, Børn-unge psykiatrien | B74: Skema 6.18: Betalinger til selvejende, private og udenlandske sygehuse | G74: 0
A75: Region Syddanmark, Børn-unge psykiatrien | B75: Skema 6.19: Dækningsafgift/ejendomsskat | C75: 493 | D75: 502 | E75: 491 | F75: 461 | G75: -9 | H75: -1,8%
A76: Region Syddanmark, Børn-unge psykiatrien | B76: Skema 6.20: Forsikringer/erstatninger | C76: 1439 | D76: 1408 | E76: 1393 | F76: 1648 | G76: 31 | H76: 2,2%
A77: Region Syddanmark, Børn-unge psykiatrien | B77: Skema 6.21: Vederlagsfri Lab. –ydelser og andre ydelser til praksissektoren
A78: Region Syddanmark, Børn-unge psykiatrien | B78: Skema 6.22: Patienttransport | C78: 423 | D78: 408 | E78: 411 | F78: 285 | G78: 15 | H78: 3,7%
A79: Region Syddanmark, Børn-unge psykiatrien | B79: Skema 6.23: Serviceydelser til/fra andre institutioner eller sygehuse udenfor regionen
A80: Region Syddanmark, Børn-unge psykiatrien | B80: Skema 6.24: Udgifter til eksternt finansierede forskning | C80: -5855 | D80: -18 | E80: -66 | G80: -5837 | H80: 32427,8%▲ | I80: Flere projekter, herunder større enkeltprojekter
A81: Region Syddanmark, Børn-unge psykiatrien | B81: Skema 6.25: Forebyggelse rettet mod praksissektoren og kommuner
A82: Region Syddanmark, Børn-unge psykiatrien | B82: Skema 6.26: Praksisreservelæger | G82: 0
A83: Region Syddanmark, Børn-unge psykiatrien | B83: Skema 6.27: Præhospital
A84: Region Syddanmark, Børn-unge psykiatrien | B84: Skema 6.28: Udgifter til Danske Regioner (Kontigent, MedCom, Fællesproj.) | G84: 0
A85: Region Syddanmark, Børn-unge psykiatrien | B85: Skema 6.29: Hospice
A86: Region Syddanmark, Børn-unge psykiatrien | B86: Skema 6.30: Konsulenter(Praksis) | C86: 146 | D86: 113 | E86: 83 | F86: 85 | G86: 33 | H86: 29,2%▲ | I86: Flere ansatte end i 2022
A87: Region Syddanmark, Børn-unge psykiatrien | B87: Skema 6.31: Videnskabsetisk Komité
A88: Region Syddanmark, Børn-unge psykiatrien | B88: Skema 6.32: Tolkebistand | C88: 4 | D88: 16 | E88: 69 | F88: 56 | G88: -12 | H88: -75,0%▼ | I88: Faldende brug af enkelstående tolke-ydelser
A89: Region Syddanmark, Børn-unge psykiatrien | B89: Skema 6.33: Dansk Center for Partikelterapi
A90: Region Syddanmark, Børn-unge psykiatrien | B90: Skema 6.34: Politisk organisation – overførte udgifter fra funktion 4.10.01, 4.10.02 og 4.10.04 | G90: 0
A91: Region Syddanmark, Børn-unge psykiatrien | B91: Skema 6.35: Øvrige udgifter, Region Sjælland
A92: Region Syddanmark, Børn-unge psykiatrien | B92: Skema 6.36: Sundhedsydelser ifm. specialsektor | G92: 0
A93: Region Syddanmark, Børn-unge psykiatrien | B93: Skema 6.37: Udgifter til primær sundhed fra skema 2
A94: Region Syddanmark, Børn-unge psykiatrien | B94: Skema 6.38: Udgifter til primær sundhed fra skema 3 | G94: 0
A95: Region Syddanmark, Børn-unge psykiatrien | B95: Skema 6.39: Særlige udgifter ifm. COVID-19
A96: Region Syddanmark, Børn-unge psykiatrien | B96: Skema 6.40: Udleveret udstyr/tilbehør ifm. cochlear implantater | G96: 0
A97: Region Syddanmark, Børn-unge psykiatrien | B97: Skema 6.41: Luxturna-behandling, Rigshospitalet
A98: Region Syddanmark, Børn-unge psykiatrien | B98: Skema 6.42: Udleveret medicin | C98: 1509 | D98: 1418 | E98: 1298 | G98: 91 | H98: 6,4%
A99: Region Syddanmark, Børn-unge psykiatrien | B99: Skema 6.43: Udgifter ifm. sundhedsklynger | G99: 0
A100: Region Syddanmark, Børn-unge psykiatrien | B100: Skema 6.44: Ukrainske patienter under særlov eller asyl | G100: 0
A101: Region Syddanmark, Børn-unge psykiatrien | B101: Skema 6.45: Udgifter ifm. de særlige pladser i psykiatrien | C101: 909 | G101: 909
A102: Region Syddanmark, Børn-unge psykiatrien | B102: Skema 6.46: Sikringsafdelingen, Region Sjælland | C102: 3679 | G102: 3679
A103: Region Syddanmark, Børn-unge psykiatrien | B103: Skema 6.47: Øvrige (Kan kun benyttes efter aftale med Sundhedsdatastyrelsen) | G103: =IF(ISERROR(C103- D103)=TRUE,"",C103 - D103) -> 0 | H103: =IF(ISERROR((((C103- D103)/D103)*100)=TRUE),"",IF((((C103- D103)/D103)*100)<-7,FIXED(((C103- D103)/D103)*100, 1,TRUE) &"%" & "▼",IF((((C103- D103)/D103)*100)>7,FIXED(((C103- D103)/D103)*100, 1,TRUE) &"%" &"▲",FIXED(((C103- D103)/D103)*100, 1,TRUE)&"%"))) -> 
A104: Region Syddanmark, Børn-unge psykiatrien | B104: Lukkede poster (må kun bruges af Sundhedsdatastyrelsen) | G104: 0
A105: Region Syddanmark, Børn-unge psykiatrien | B105: I alt | C105: =SUMIFS((C7:C104),(A7:A104),A105) -> -4695 | D105: =SUMIFS((D7:D104),(A7:A104),A105) -> 2482 | E105: =SUMIFS((E7:E104),(A7:A104),A105) -> 4224 | F105: =SUMIFS((F7:F104),(A7:A104),A105) -> 1202 | G105: -7177 | H105: -289,2%▼
A106: Ikke fordelte udgifter i Region Syddanmark, psykiatri | G106: 0
A107: Ikke fordelte udgifter i Region Syddanmark, psykiatri | B107: Skema 6.1: Center for voldsramte (Bispebjerg) | G107: 0
A108: Ikke fordelte udgifter i Region Syddanmark, psykiatri | B108: Skema 6.2: Ventilatørbistand i hjemmet, respiratorpatienter | G108: 0
A109: Ikke fordelte udgifter i Region Syddanmark, psykiatri | B109: Skema 6.3: Blodprøvetagning i eget hjem | G109: 0
A110: Ikke fordelte udgifter i Region Syddanmark, psykiatri | B110: Skema 6.4: Psykinfo + pårørende | C110: 11004 | D110: 9243 | E110: 9475 | F110: 7994 | G110: 1761 | H110: 19,1%▲ | I110: Nye indsatser
A111: Ikke fordelte udgifter i Region Syddanmark, psykiatri | B111: Skema 6.5: Leveret udstyr til patienter i eget hjem, ilt og sonderemedier
A112: Ikke fordelte udgifter i Region Syddanmark, psykiatri | B112: Skema 6.6: Montebello (Nordsjællands Hospitaler) | G112: 0
A113: Ikke fordelte udgifter i Region Syddanmark, psykiatri | B113: Skema 6.7: Satspulje korrektioner mellem år
A114: Ikke fordelte udgifter i Region Syddanmark, psykiatri | B114: Skema 6.8: Klinisk farmakologisk rådgivning af praksissektoren | G114: 0
A115: Ikke fordelte udgifter i Region Syddanmark, psykiatri | B115: Skema 6.9: Tandregulering ifm. operation
A116: Ikke fordelte udgifter i Region Syddanmark, psykiatri | B116: Skema 6.10: Giftlinjen | G116: 0
A117: Ikke fordelte udgifter i Region Syddanmark, psykiatri | B117: Skema 6.11: Tjenestemandspensioner
A118: Ikke fordelte udgifter i Region Syddanmark, psykiatri | B118: Skema 6.12: Art 4.6 Betalinger til staten | G118: 0
A119: Ikke fordelte udgifter i Region Syddanmark, psykiatri | B119: Skema 6.13: Art 4.7 Betalinger til kommuner
A120: Ikke fordelte udgifter i Region Syddanmark, psykiatri | B120: Skema 6.14: Art 4.8 Betalinger til andre regioner | G120: 0
A121: Ikke fordelte udgifter i Region Syddanmark, psykiatri | B121: Skema 6.15: Art 7.6 Betalinger fra staten
A122: Ikke fordelte udgifter i Region Syddanmark, psykiatri | B122: Skema 6.16: Art 7.7 Betalinger fra kommuner | G122: 0
A123: Ikke fordelte udgifter i Region Syddanmark, psykiatri | B123: Skema 6.17: Art 7.8 Betalinger fra andre regioner
A124: Ikke fordelte udgifter i Region Syddanmark, psykiatri | B124: Skema 6.18: Betalinger til selvejende, private og udenlandske sygehuse | C124: 14628 | D124: 14262 | E124: 14085 | F124: 13889 | G124: 366 | H124: 2,6%
A125: Ikke fordelte udgifter i Region Syddanmark, psykiatri | B125: Skema 6.19: Dækningsafgift/ejendomsskat | G125: 0
A126: Ikke fordelte udgifter i Region Syddanmark, psykiatri | B126: Skema 6.20: Forsikringer/erstatninger | G126: 0
A127: Ikke fordelte udgifter i Region Syddanmark, psykiatri | B127: Skema 6.21: Vederlagsfri Lab. –ydelser og andre ydelser til praksissektoren | G127: 0
A128: Ikke fordelte udgifter i Region Syddanmark, psykiatri | B128: Skema 6.22: Patienttransport | G128: 0
A129: Ikke fordelte udgifter i Region Syddanmark, psykiatri | B129: Skema 6.23: Serviceydelser til/fra andre institutioner eller sygehuse udenfor regionen | G129: 0
A130: Ikke fordelte udgifter i Region Syddanmark, psykiatri | B130: Skema 6.24: Udgifter til eksternt finansierede forskning | G130: 0
A131: Ikke fordelte udgifter i Region Syddanmark, psykiatri | B131: Skema 6.25: Forebyggelse rettet mod praksissektoren og kommuner | G131: 0
A132: Ikke fordelte udgifter i Region Syddanmark, psykiatri | B132: Skema 6.26: Praksisreservelæger | G132: 0
A133: Ikke fordelte udgifter i Region Syddanmark, psykiatri | B133: Skema 6.27: Præhospital | G133: 0
A134: Ikke fordelte udgifter i Region Syddanmark, psykiatri | B134: Skema 6.28: Udgifter til Danske Regioner (Kontigent, MedCom, Fællesproj.) | G134: 0
A135: Ikke fordelte udgifter i Region Syddanmark, psykiatri | B135: Skema 6.29: Hospice | G135: =IF(ISERROR(C135- D135)=TRUE,"",C135 - D135) -> 0 | H135: =IF(ISERROR((((C135- D135)/D135)*100)=TRUE),"",IF((((C135- D135)/D135)*100)<-7,FIXED(((C135- D135)/D135)*100, 1,TRUE) &"%" & "▼",IF((((C135- D135)/D135)*100)>7,FIXED(((C135- D135)/D135)*100, 1,TRUE) &"%" &"▲",FIXED(((C135- D135)/D135)*100, 1,TRUE)&"%"))) -> 
A136: Ikke fordelte udgifter i Region Syddanmark, psykiatri | B136: Skema 6.30: Konsulenter(Praksis) | G136: 0
A137: Ikke fordelte udgifter i Region Syddanmark, psykiatri | B137: Skema 6.31: Videnskabsetisk Komité | G137: 0
A138: Ikke fordelte udgifter i Region Syddanmark, psykiatri | B138: Skema 6.32: Tolkebistand | G138: 0
A139: Ikke fordelte udgifter i Region Syddanmark, psykiatri | B139: Skema 6.33: Dansk Center for Partikelterapi | G139: 0
A140: Ikke fordelte udgifter i Region Syddanmark, psykiatri | B140: Skema 6.34: Politisk organisation – overførte udgifter fra funktion 4.10.01, 4.10.02 og 4.10.04 | G140: 0
A141: Ikke fordelte udgifter i Region Syddanmark, psykiatri | B141: Skema 6.35: Øvrige udgifter, Region Sjælland | G141: 0
A142: Ikke fordelte udgifter i Region Syddanmark, psykiatri | B142: Skema 6.36: Sundhedsydelser ifm. specialsektor | G142: 0
A143: Ikke fordelte udgifter i Region Syddanmark, psykiatri | B143: Skema 6.37: Udgifter til primær sundhed fra skema 2 | G143: 0
A144: Ikke fordelte udgifter i Region Syddanmark, psykiatri | B144: Skema 6.38: Udgifter til primær sundhed fra skema 3 | G144: 0
A145: Ikke fordelte udgifter i Region Syddanmark, psykiatri | B145: Skema 6.39: Særlige udgifter ifm. COVID-19 | G145: 0
A146: Ikke fordelte udgifter i Region Syddanmark, psykiatri | B146: Skema 6.40: Udleveret udstyr/tilbehør ifm. cochlear implantater | G146: 0
A147: Ikke fordelte udgifter i Region Syddanmark, psykiatri | B147: Skema 6.41: Luxturna-behandling, Rigshospitalet | G147: 0
A148: Ikke fordelte udgifter i Region Syddanmark, psykiatri | B148: Skema 6.42: Udleveret medicin | G148: 0
A149: Ikke fordelte udgifter i Region Syddanmark, psykiatri | B149: Skema 6.43: Udgifter ifm. sundhedsklynger | G149: 0
A150: Ikke fordelte udgifter i Region Syddanmark, psykiatri | B150: Skema 6.44: Ukrainske patienter under særlov eller asyl | G150: 0
A151: Ikke fordelte udgifter i Region Syddanmark, psykiatri | B151: Skema 6.45: Udgifter ifm. de særlige pladser i psykiatrien | G151: 0
A152: Ikke fordelte udgifter i Region Syddanmark, psykiatri | B152: Skema 6.46: Sikringsafdelingen, Region Sjælland | G152: 0
A153: Ikke fordelte udgifter i Region Syddanmark, psykiatri | B153: Skema 6.47: Øvrige (Kan kun benyttes efter aftale med Sundhedsdatastyrelsen) | G153: 0
A154: Ikke fordelte udgifter i Region Syddanmark, psykiatri | B154: Lukkede poster (må kun bruges af Sundhedsdatastyrelsen) | G154: 0
A155: Ikke fordelte udgifter i Region Syddanmark, psykiatri | B155: I alt | C155: =SUMIFS((C7:C154),(A7:A154),A155) -> 25632 | D155: =SUMIFS((D7:D154),(A7:A154),A155) -> 23505 | E155: =SUMIFS((E7:E154),(A7:A154),A155) -> 23560 | F155: =SUMIFS((F7:F154),(A7:A154),A155) -> 21883 | G155: 2127 | H155: 9,0%▲

Sheet Skema 7
A1: Region Syddanmark, psykiatriske sygehuse.
B2: Skema 7: Vederlagsfrie ydelser mellem sygehusene. (1.000 kr.)
A5: Sygehus | B5: 2023 | D5: 2023 | E5: 2022 | G5: 2022 | H5: 2021 | J5: 2021 | K5: 2020 | M5: 2020
B6: Leverede | C6: Modtagne | D6: Lev. - Mod. | E6: Leverede | F6: Modtagne | G6: Lev. - Mod. | H6: Leverede | I6: Modtagne | J6: Lev. - Mod. | K6: Leverede | L6: Modtagne | M6: Lev. - Mod.
A7: Region Syddanmark. Voksen psykiatrien | C7: 14203 | D7: =$B$7-$C$7 -> -14203 | F7: 14036 | G7: =$E$7-$F$7 -> -14036 | I7: 13913 | J7: =$H$7-$I$7 -> -13913 | L7: 13703 | M7: =$K$7-$L$7 -> -13703
A8: Region Syddanmark. Børn-unge psykiatrien | C8: 2782 | D8: =$B$8-$C$8 -> -2782 | F8: 2815 | G8: =$E$8-$F$8 -> -2815 | I8: 2770 | J8: =$H$8-$I$8 -> -2770 | L8: 2738 | M8: =$K$8-$L$8 -> -2738
A9: Ikke fordelte udgifter i Region Syddanmark, psykiatri | D9: =$B$9-$C$9 -> 0 | G9: =$E$9-$F$9 -> 0 | J9: =$H$9-$I$9 -> 0 | M9: =$K$9-$L$9 -> 0
A10: I alt | B10: =SUM(B7:B9) -> 0 | C10: =SUM(C7:C9) -> 16985 | D10: =SUM(D7:D9) -> -16985 | E10: =SUM(E7:E9) -> 0 | F10: 16851 | G10: -16851 | H10: 0 | I10: 16683 | J10: -16683 | K10: =SUM(K7:K9) -> 0 | L10: =SUM(L7:L9) -> 16441 | M10: -16441
A12: NB: Afstem med somatikken

Sheet Rapport
B2: Skema 1: Udgifter og indtægter på sygehusene/enhederne, eksklusiv omkostningssted 0001, Fælleskonto. (1.000 kr.)
C3: 2023 | D3: 2022 | E3: 2021 | F3: 2020
B4: Hovedart 1: Lønninger | C4: 1793224 | D4: 1745686 | E4: 1677386 | F4: 1593471
B5: Hovedart 2: Varekøb | C5: 70698 | D5: 62958 | E5: 65718 | F5: 74925
B6: Hovedart 4: Tjenesteydelser m.v. | C6: 467783 | D6: 459815 | E6: 436714 | F6: 396653
B7: Hovedart 5: Tilskud og overførsler | C7: 24677 | D7: 3151 | E7: 7057 | F7: 8450
B8: Hovedart 6: Finansudgifter | C8: 0 | D8: 0 | E8: 0 | F8: 0
B9: Hovedart 7: Indtægter | C9: -209220 | D9: -190176 | E9: -199547 | F9: -195744
B10: Hovedart 8: Finansindtægter | C10: 0 | D10: -12 | E10: -3 | F10: 0
B11: Hovedart 9: Interne udgifter og indtægter | C11: 0 | D11: 0 | E11: 0 | F11: 0
B12: I alt | C12: 2147162 | D12: 2081422 | E12: 1987325 | F12: 1877755
B14: Skema 2: Fællesudgifter og -indtægter vedrørende sygehusene. (1.000 kr.)
C15: 2023 | D15: 2022 | E15: 2021 | F15: 2020
B16: Hovedart 1: Lønninger | C16: 8982 | D16: 18852 | E16: 15507 | F16: 19905
B17: Hovedart 2: Varekøb | C17: 3478 | D17: -819 | E17: 2938 | F17: 5461
B18: Hovedart 4: Tjenesteydelser m.v. | C18: 70824 | D18: 59658 | E18: 63136 | F18: 53802
B19: Hovedart 5: Tilskud og overførsler | C19: 0 | D19: 0 | E19: 0 | F19: 0
B20: Hovedart 6: Finansudgifter | C20: 0 | D20: 0 | E20: 0 | F20: 0
B21: Hovedart 7: Indtægter | C21: -19351 | D21: -11856 | E21: -4937 | F21: -8030
B22: Hovedart 8: Finansindtægter | C22: -62 | D22: -78 | E22: 0 | F22: 0
B23: Hovedart 9: Interne udgifter og indtægter | C23: 0 | D23: 0 | E23: 0 | F23: 0
B24: I alt | C24: 63871 | D24: 65757 | E24: 76644 | F24: 71138
B26: Skema 3:Regionale fællesudgifter og -indtægter. (1.000 kr.)
C27: 2023 | D27: 2022 | E27: 2021 | F27: 2020
B28: 1.70.50: Andel af fællesudgifter | C28: 40493 | D28: 38481 | E28: 34396 | F28: 31921
B29: 1.60.40: Andel af central administration af sundhed (til og med 2019) | C29: 10094 | D29: 9983 | E29: 9764 | F29: 8594
B30: 1.60.41: Andel af øvrige udgifter og indtægter | C30: 0 | D30: 0 | E30: 0 | F30: 0
B31: 1.50.33: Andel af central administration af sundhed (ekskl. psykiatri) | C31: 0 | D31: 0 | E31: 0 | F31: 0
B32: 1.50.35: Administration af det psykiatriske område (kun central del) | C32: 0 | D32: 0 | E32: 0 | F32: 0
B33: I alt | C33: 50587 | D33: 48464 | E33: 44160 | F33: 40515
B35: Skema 4: Udgifter og indtægter til og fra psykiatriske afdelinger konteret på somatiske sygehuse. (1.000 kr.)
C36: 2023 | D36: 2022 | E36: 2021 | F36: 2020
B37: Korrektion | C37: 0 | D37: 0 | E37: 0 | F37: 0
B38: Lønudg. på psyk. afd.,somatiske sygehuse | C38: 0 | D38: 0 | E38: 0 | F38: 0
B39: Øvrige udg. til psyk. afd.,somatiske sygehuse | C39: 0 | D39: 0 | E39: 0 | F39: 0
B40: I alt | C40: 0 | D40: 0 | E40: 0 | F40: 0
B42: Skema 5: Leasing- og huslejeudgifter. (1.000 kr.)
C43: 2023 | D43: 2022 | E43: 2021 | F43: 2020
B44: Andre udgifter | C44: 0 | D44: 0 | E44: 0 | F44: 0
B45: Leasing- og lejeudgifter | C45: 112 | D45: 125 | E45: 162 | F45: 156
B46: Huslejeudgifter | C46: 41794 | D46: 35866 | E46: 41200 | F46: 41026
B47: I alt | C47: 41906 | D47: 35991 | E47: 41362 | F47: 41182
B49: Skema 6: Udgifter til andet end patientbehandling. (1.000 kr.)
C50: 2023 | D50: 2022 | E50: 2021 | F50: 2020
B51: Skema 6.1: Center for voldsramte (Bispebjerg) | C51: 0 | D51: 0 | E51: 0 | F51: 0
B52: Skema 6.2: Ventilatørbistand i hjemmet, respiratorpatienter | C52: 0 | D52: 0 | E52: 0 | F52: 0
B53: Skema 6.3: Blodprøvetagning i eget hjem | C53: 0 | D53: 0 | E53: 0 | F53: 0
B54: Skema 6.4: Psykinfo + pårørende | C54: 11004 | D54: 9243 | E54: 9475 | F54: 7994
B55: Skema 6.5: Leveret udstyr til patienter i eget hjem, ilt og sonderemedier | C55: 0 | D55: 0 | E55: 0 | F55: 0
B56: Skema 6.6: Montebello (Nordsjællands Hospitaler) | C56: 0 | D56: 0 | E56: 0 | F56: 0
B57: Skema 6.7: Satspulje korrektioner mellem år | C57: 0 | D57: 0 | E57: 0 | F57: 0
B58: Skema 6.8: Klinisk farmakologisk rådgivning af praksissektoren | C58: 0 | D58: 0 | E58: 0 | F58: 0
B59: Skema 6.9: Tandregulering ifm. operation | C59: 0 | D59: 0 | E59: 0 | F59: 0
B60: Skema 6.10: Giftlinjen | C60: 0 | D60: 0 | E60: 0 | F60: 0
B61: Skema 6.11: Tjenestemandspensioner | C61: 0 | D61: 0 | E61: 0 | F61: 0
B62: Skema 6.12: Art 4.6 Betalinger til staten | C62: 0 | D62: 0 | E62: 0 | F62: 0
B63: Skema 6.13: Art 4.7 Betalinger til kommuner | C63: 0 | D63: 0 | E63: 0 | F63: 0
B64: Skema 6.14: Art 4.8 Betalinger til andre regioner | C64: 5329 | D64: 37099 | E64: 40549 | F64: 35084
B65: Skema 6.15: Art 7.6 Betalinger fra staten | C65: 0 | D65: 0 | E65: 0 | F65: 0
B66: Skema 6.16: Art 7.7 Betalinger fra kommuner | C66: -34479 | D66: -6309 | E66: -4473 | F66: -8098
B67: Skema 6.17: Art 7.8 Betalinger fra andre regioner | C67: -16283 | D67: -18252 | E67: -12053 | F67: -12406
B68: Skema 6.18: Betalinger til selvejende, private og udenlandske sygehuse | C68: 14628 | D68: 14262 | E68: 14085 | F68: 13889
B69: Skema 6.19: Dækningsafgift/ejendomsskat | C69: 3011 | D69: 3003 | E69: 2959 | F69: 2883
B70: Skema 6.20: Forsikringer/erstatninger | C70: 8807 | D70: 8426 | E70: 8388 | F70: 9893
B71: Skema 6.21: Vederlagsfri Lab. –ydelser og andre ydelser til praksissektoren | C71: 0 | D71: 0 | E71: 0 | F71: 0
B72: Skema 6.22: Patienttransport | C72: 2583 | D72: 2444 | E72: 2478 | F72: 1709
B73: Skema 6.23: Serviceydelser til/fra andre institutioner eller sygehuse udenfor regionen | C73: 0 | D73: 0 | E73: 0 | F73: 0
B74: Skema 6.24: Udgifter til eksternt finansierede forskning | C74: 33 | D74: -18 | E74: -74 | F74: -55
B75: Skema 6.25: Forebyggelse rettet mod praksissektoren og kommuner | C75: 0 | D75: 0 | E75: 0 | F75: 0
B76: Skema 6.26: Praksisreservelæger | C76: 0 | D76: 0 | E76: 0 | F76: 0
B77: Skema 6.27: Præhospital | C77: 0 | D77: 0 | E77: 0 | F77: 0
B78: Skema 6.28: Udgifter til Danske Regioner (Kontigent, MedCom, Fællesproj.) | C78: 0 | D78: 0 | E78: 0 | F78: 0
B79: Skema 6.29: Hospice | C79: 0 | D79: 0 | E79: 0 | F79: 0
B80: Skema 6.30: Konsulenter(Praksis) | C80: 891 | D80: 678 | E80: 501 | F80: 509
B81: Skema 6.31: Videnskabsetisk Komité | C81: 0 | D81: 0 | E81: 0 | F81: 0
B82: Skema 6.32: Tolkebistand | C82: 125 | D82: 183 | E82: 220 | F82: 511
B83: Skema 6.33: Dansk Center for Partikelterapi | C83: 0 | D83: 0 | E83: 0 | F83: 0
B84: Skema 6.34: Politisk organisation – overførte udgifter fra funktion 4.10.01, 4.10.02 og 4.10.04 | C84: 0 | D84: 0 | E84: 0 | F84: 0
B85: Skema 6.35: Øvrige udgifter, Region Sjælland | C85: 0 | D85: 0 | E85: 0 | F85: 0
B86: Skema 6.36: Sundhedsydelser ifm. specialsektor | C86: 0 | D86: 0 | E86: 0 | F86: 0
B87: Skema 6.37: Udgifter til primær sundhed fra skema 2 | C87: 0 | D87: 0 | E87: 0 | F87: 0
B88: Skema 6.38: Udgifter til primær sundhed fra skema 3 | C88: 0 | D88: 0 | E88: 0 | F88: 0
B89: Skema 6.39: Særlige udgifter ifm. COVID-19 | C89: 0 | D89: 0 | E89: 0 | F89: 0
B90: Skema 6.40: Udleveret udstyr/tilbehør ifm. cochlear implantater | C90: 0 | D90: 0 | E90: 0 | F90: 0
B91: Skema 6.41: Luxturna-behandling, Rigshospitalet | C91: 0 | D91: 0 | E91: 0 | F91: 0
B92: Skema 6.42: Udleveret medicin | C92: 9211 | D92: 9720 | E92: 8968 | F92: 0
B93: Skema 6.43: Udgifter ifm. sundhedsklynger | C93: 0 | D93: 0 | E93: 0 | F93: 0
B94: Skema 6.44: Ukrainske patienter under særlov eller asyl | C94: 0 | D94: 0 | E94: 0 | F94: 0
B95: Skema 6.45: Udgifter ifm. de særlige pladser i psykiatrien | C95: 43398 | D95: 0 | E95: 0 | F95: 0
B96: Skema 6.46: Sikringsafdelingen, Region Sjælland | C96: 22460 | D96: 0 | E96: 0 | F96: 0
B97: Skema 6.47: Øvrige (Kan kun benyttes efter aftale med Sundhedsdatastyrelsen) | C97: 0 | D97: 0 | E97: 0 | F97: 0
B98: Lukkede poster (må kun bruges af Sundhedsdatastyrelsen) | C98: 0 | D98: 0 | E98: 0 | F98: 0
B99: I alt | C99: 70718 | D99: 60479 | E99: 71023 | F99: 51913

Sheet Rapport SGH
A1: 2023 | B1: Skema 1 | C1: Skema 2 | D1: Skema 3 | E1: Skema 4 | F1: Skema 5 | G1: Skema 6 | H1: Skema 7 | I1: I alt
A2: Region Syddanmark, Voksen psykiatrien | B2: 1788804 | C2: 41177 | D2: 42292 | E2: 0 | F2: 34942 | G2: 49781 | H2: -14203 | I2: =SUM(B2:D2)-SUM(E2:H2) -> 1801753
A3: Region Syddanmark, Børn-unge psykiatrien | B3: 347354 | C3: 8066 | D3: 8295 | E3: 0 | F3: 6964 | G3: -4695 | H3: -2782 | I3: =SUM(B3:D3)-SUM(E3:H3) -> 364228
A4: Ikke fordelte udgifter i Region Syddanmark, psykiatri | B4: 11004 | C4: 14628 | D4: 0 | E4: 0 | F4: 0 | G4: 25632 | H4: 0 | I4: 0
A6: 2022
A7: Region Syddanmark, Voksen psykiatrien | B7: 1717597 | C7: 42895 | D7: 40370 | E7: 0 | F7: 29846 | G7: 34492 | H7: -14036 | I7: =SUM(B7:D7)-SUM(E7:H7) -> 1750560
A8: Region Syddanmark, Børn-unge psykiatrien | B8: 354582 | C8: 8600 | D8: 8094 | E8: 0 | F8: 6145 | G8: 2482 | H8: -2815 | I8: =SUM(B8:D8)-SUM(E8:H8) -> 365464
A9: Ikke fordelte udgifter i Region Syddanmark, psykiatri | B9: 9243 | C9: 14262 | D9: 0 | E9: 0 | F9: 0 | G9: 23505 | H9: 0 | I9: =SUM(B9:D9)-SUM(E9:H9) -> 0

Sheet Afstemning af ikke fordelte
A1: Afstemning af Ikke fordelte indtægter- og udgifter
A2: 1.000 kr. | B2: 2023
A3: Skema 1 | B3: 11004
A4: Skema 2 | B4: 14628
A5: Skema 3 | B5: 0
A6: Skema 4 | B6: 0
A7: Skema 5 | B7: 0
A8: Skema 6 | B8: 25632
A9: 1+2+3-4-5-6 | B9: =+B3+B4+B5-B6-B7-B8 -> 0
